Cogmind - Beta 10.2 @@@ ROGUE MODE // 2021.01.27 @ 15:09:07 Player: CrossedViper Result: Destroyed by 8R-AWN with 8R-AWN's Boregun Performance ------------- Evolutions (0) 0 Regions Visited (3) 600 Robots Destroyed (16) 80 Value Destroyed (324) 324 Prototype IDs (23) 460 Alien Tech Used (0) 0 Bonus (300) 300 TOTAL SCORE: 1764 Bonus ------- Aligned with FarCom 300 Cogmind --------- Core Integrity 0/250 Matter 102/300 Energy 100/100 System Corruption 0% Temperature Cool (0) Movement Treading (160) Location -10/Exiles Parts ------- > --- POWER (1) -------- (None) > --- PROPULSION (2) --- Light Treads Light Treads > --- UTILITY (2) ------ Weapon Shielding > --- WEAPON (2) ------- Light Assault Rifle Light Assault Rifle > --- INVENTORY (4) ---- Mining Claw Peak State ------------ > --- POWER ------------ Light Nuclear Core > --- PROPULSION ------- Light Treads Light Treads > --- UTILITY ---------- Light Armor Plating Light Armor Plating > --- WEAPON ----------- Guided Plasma Cannon Field Lobotomy Kit > --- INVENTORY -------- Assault Rifle [Rating: 25] Favorites ----------- Power Light Nuclear Core Engine Ion Engine Power Core Light Nuclear Core Propulsion Light Treads Treads Light Treads Leg Aluminum Leg Utility High-capacity Storage Unit Device Disposable Heat Sink Storage High-capacity Storage Unit Protection Light Armor Plating Weapon Particle Cannon Energy Cannon Particle Cannon Ballistic Gun Light Assault Rifle Special Weapon Field Lobotomy Kit Slashing Weapon Mining Claw Build | -11 -10 -10 -10 ------- Run | Scr Mat Min Exi Slots Evolved . | . . . . Power . | . . . . Propulsion . | . . . . Utility . | . . . . Weapon . | . . . . Parts Attached 25 | . 10 1 14 Power 1 | . 1 . . Engine . | . . . . Core 1 | . 1 . . Reactor . | . . . . Propulsion 5 | . 2 . 3 Treads 5 | . 2 . 3 Leg . | . . . . Wheel . | . . . . Hover . | . . . . Flight . | . . . . Utility 8 | . 4 1 3 Device 2 | . 2 . . Storage 3 | . 2 1 . Processor . | . . . . Hackware . | . . . . Protection 3 | . . . 3 Artifact . | . . . . Weapon 11 | . 3 . 8 Energy Gun . | . . . . Energy Cannon 4 | . 3 . 1 Ballistic Gun 5 | . . . 5 Ballistic Cannon . | . . . . Launcher . | . . . . Special Weapon 1 | . . . 1 Impact Weapon . | . . . . Slashing Weapon 1 | . . . 1 Piercing Weapon . | . . . . Special Melee Weapon . | . . . . Unidentified Prototypes . | . . . . Parts Lost 9 | . 1 . 8 Power 1 | . . . 1 Propulsion 3 | . . . 3 Utility 2 | . . . 2 Weapon 3 | . 1 . 2 Highest Loss Streak 7 | . 1 . 7 Average Slot Usage (%) 93 | . 99 100 87 Engine 3 | . 12 . . Core 9 | . 1 14 12 Treads 27 | . 28 28 27 Device 5 | . 13 6 . Storage 15 | . 14 21 15 Protection 2 | . . . 5 Energy Cannon 22 | . 26 28 18 Ballistic Gun 2 | . . . 3 Special Weapon 1 | . . . 2 Naked Turns . | . . . . Heaviest Build 77 | 11 46 77 77 Greatest Support 40 | 20 40 40 40 Greatest Overweight (x) 1 | . 1 1 1 Average Overweight (x) . | . . 1 . Largest Inventory Capacity 20 | . 12 20 20 Average Capacity 12 | . 9 16 12 Most Carried 20 | . 12 20 20 Average Carried 11 | . 9 16 11 Final Capacity 20 | 6 12 20 4 Final Carried 20 | 6 12 20 1 Class Distribution -------------------- 62% | Mutant 37% | Hauler-Mutant Dominant Class ---------------- Mutant | -10/Materials Hauler-Mutant | -10/Mines Hauler-Mutant | -10/Exiles Resources | -11 -10 -10 -10 ----------- Run | Scr Mat Min Exi Matter Collected 350 | 200 100 10 40 Remotely . | . . . . Salvage Created 681 | . 428 190 63 Parts 33 | . 25 8 . Haulers Intercepted 1 | . 1 . . Recyclers Shooed . | . . . . Parts Field Recycled . | . . . . Retrieved Matter . | . . . . Parts Self-Destructed . | . . . . Prevented . | . . . . Kills | -11 -10 -10 -10 ------- Run | Scr Mat Min Exi Combat Hostiles Destroyed 16 | . 10 2 4 Cannons 16 | . 10 2 4 Classes Destroyed 7 | . 5 1 1 Worker 1 | . 1 . . Hauler 1 | . 1 . . Recycler 2 | . 1 1 . Swarmer 6 | . 6 . . Grunt 4 | . 4 . . Sentry 2 | . . 2 . Assembled 4 | . . . 4 Best Kill Streak 6 | . 6 2 4 Combat Bots Only 5 | . 5 2 4 Max Kills in Single Turn 1 | . 1 1 1 Gunslinging . | . . . . Exploded . | . . . . Melee . | . . . . Uniques/NPCs Destroyed . | . . . . Combat | -11 -10 -10 -10 -------- Run | Scr Mat Min Exi Damage Taken 1639 | . 377 34 1228 Core 256 | . 83 . 173 Absorbed by Shields . | . . . . Core Remaining (%) 100 | 100 . . . Volleys Fired 79 | . 25 4 50 Largest 2 | . 2 2 2 Hottest 136 | . 136 136 120 Shots Fired 148 | . 49 8 91 Gun 82 | . . . 82 Cannon 62 | . 49 8 5 Launcher . | . . . . Special 4 | . . . 4 Kinetic 82 | . . . 82 Thermal 62 | . 49 8 5 Explosive . | . . . . Electromagnetic . | . . . . Robot Hit Streak 19 | . 3 8 19 Robot Miss Streak 2 | . 2 . 2 Penetration Max . | . . . . Secondary Targets . | . . . . Shots Hit Robots 112 | . 27 5 80 Core Hits 33 | . 14 3 16 Critical Hits . | . . . . Critical Kills . | . . . . Critical Parts Destroyed . | . . . . Melee Attacks 1 | . . . 1 Impact . | . . . . Slashing 1 | . . . 1 Piercing . | . . . . Sneak Attacks . | . . . . Combat Hostiles . | . . . . Follow-up Attacks . | . . . . Damage Inflicted 1476 | . 559 104 813 Guns 651 | . . . 651 Cannons 803 | . 559 104 140 Explosions . | . . . . Melee 22 | . . . 22 Ramming . | . . . . Kinetic 651 | . . . 651 Thermal 803 | . 559 104 140 Explosive . | . . . . Electromagnetic . | . . . . Impact . | . . . . Slashing 22 | . . . 22 Piercing . | . . . . Highest Corruption . | . . . . Average Corruption . | . . . . Corruption Purged . | . . . . Overload Shots . | . . . . Overflow Damage 1 | . 1 . . Projectiles 1 | . 1 . . Explosions . | . . . . Melee . | . . . . Knockbacks . | . . . . Impact . | . . . . Kinetic . | . . . . Secondary . | . . . . Self-Inflicted Damage . | . . . . Shots . | . . . . Rammed . | . . . . Targets Rammed . | . . . . Kicked . | . . . . Crushed . | . . . . Highest Temperature 384 | . 193 193 384 Average Temperature 118 | . 107 89 158 Received Heat Transfer 120 | . 120 . . Siege Activations . | . . . . Robots Corrupted . | . . . . Combat Hostiles . | . . . . Parts Fried . | . . . . Impact Corruptions . | . . . . Robots Melted . | . . . . Combat Hostiles . | . . . . Parts Melted 1 | . 1 . . Heat Transferred 1467 | . 962 185 320 Parts Sabotaged . | . . . . Parts Stolen . | . . . . Parts Stripped . | . . . . Power Chain Reactions . | . . . . Missiles Intercepted . | . . . . Alert | -11 -10 -10 -10 ------- Run | Scr Mat Min Exi Peak Influence 259 | . 259 102 . Initial 42 | . . 42 . Average 74 | . 83 58 . Maximum Alert Level 1 | . 1 . . Low Security (%) 93 | . 89 100 . Level 1 6 | . 10 . . Level 2 . | . . . . Level 3 . | . . . . Level 4 . | . . . . Level 5 . | . . . . High Security . | . . . . Max Security . | . . . . Squads Dispatched 1 | . 1 . . Investigation . | . . . . Extermination . | . . . . Reinforcement 1 | . 1 . . Assault . | . . . . Garrison . | . . . . Intercept . | . . . . Construction Impeded . | . . . . Haulers Reinforced . | . . . . Stealth | -11 -10 -10 -10 --------- Run | Scr Mat Min Exi Distress Signals 1 | . 1 . . Communications Jammed . | . . . . Distress Signals . | . . . . Times Spotted 26 | . 16 2 8 Peak Tracking Total 9 | . 5 2 9 Tactical Retreats 2 | . 2 . . Traps | -11 -10 -10 -10 ------- Run | Scr Mat Min Exi Traps Triggered . | . . . . Indirectly . | . . . . Trap Hack Attempts . | . . . . Triggered . | . . . . Disarmed . | . . . . Reprogrammed . | . . . . Reused . | . . . . Traps Extracted . | . . . . Installed . | . . . . Triggered . | . . . . Machines | -11 -10 -10 -10 ---------- Run | Scr Mat Min Exi Machines Disabled 2 | . 1 . 1 Max in Single Turn 1 | . 1 . 1 Machines Sabotaged . | . . . . Garrisons Compromised . | . . . . Overloaded Fab Kills . | . . . . Fab Network Shutdowns . | . . . . Hacking | -11 -10 -10 -10 --------- Run | Scr Mat Min Exi Machines Accessed 4 | . 2 . 2 Terminals 2 | . 2 . . Fabricators . | . . . . Repair Stations . | . . . . Recycling Units . | . . . . Scanalyzers . | . . . . Garrison Access . | . . . . Total Hacks 9 | . 7 . 2 Successful 4 | . 2 . 2 Failed 5 | . 5 . . Catastrophic . | . . . . Database Lockouts . | . . . . Manual 8 | . 7 . 1 Terminals 7 | . 7 . . Fabricators . | . . . . Repair Stations . | . . . . Recycling Units . | . . . . Scanalyzers . | . . . . Garrison Access . | . . . . Terminal Hacks 4 | . 2 . 2 Record 1 | . . . 1 Robot Analysis 2 | . 2 . . EX-Prototype ID Bank 1 | . . . 1 Fabricator Hacks . | . . . . Repair Station Hacks . | . . . . Recycling Unit Hacks . | . . . . Scanalyzer . | . . . . Garrison Access Hacks . | . . . . Unauthorized Hacks . | . . . . Terminals . | . . . . Fabricators . | . . . . Repair Stations . | . . . . Recycling Units . | . . . . Scanalyzers . | . . . . Garrison Access . | . . . . Data Cores Recovered . | . . . . Used . | . . . . Hacking Detections 2 | . 2 . . Full Trace Events . | . . . . Feedback Events . | . . . . Feedback Blocked . | . . . . Robot Schematics Acquired . | . . . . Robots Built . | . . . . Matter . | . . . . Time . | . . . . Total Robot Build Rating . | . . . . Part Schematics Acquired . | . . . . Parts Built . | . . . . Matter . | . . . . Time . | . . . . Total Part Build Rating . | . . . . Parts Repaired . | . . . . Time . | . . . . Parts Recycled . | . . . . Recycled Matter . | . . . . Retrieved Matter . | . . . . Retrieved Components . | . . . . Parts Scanalyzed . | . . . . Part Schematics Acquired . | . . . . Parts Damaged . | . . . . Bothacking | -11 -10 -10 -10 ------------ Run | Scr Mat Min Exi Used RIF Installer . | . . . . Robots Hacked . | . . . . Non-combat . | . . . . Combat . | . . . . Robot Hacks Applied . | . . . . Relay Couplers Released . | . . . . Robots Rewired . | . . . . Allies Hacked . | . . . . Hacks Repelled . | . . . . Allies | -11 -10 -10 -10 -------- Run | Scr Mat Min Exi Total Allies 3 | . . . 3 Largest Group 2 | . . . 2 Highest-Rated Group 17 | . . . 17 Highest-Rated Ally 9 | . . . 9 Total Orders . | . . . . Ally Attacks 8 | . . . 8 Total Damage 98 | . . . 98 Kills . | . . . . Allies Corrupted . | . . . . Allies Melted . | . . . . Field Lobotomies 3 | . . . 3 Intel | -11 -10 -10 -10 ------- Run | Scr Mat Min Exi Robot Analysis Total 2 | . 2 . . Derelict Logs Recovered 1 | . . 1 . Drone Launches . | . . . . Drone Recoveries . | . . . . Exploration | -11 -10 -10 -10 ------------- Run | Scr Mat Min Exi Turns Passed 2717 | . 817 489 1411 Spaces Moved 1372 | 1 418 259 694 Core . | . . . . Treads 1367 | . 414 259 694 Legs 5 | 1 4 . . Wheels . | . . . . Hover . | . . . . Flight . | . . . . Fastest Speed 120 | 120 120 180 160 Average Speed 171 | 120 167 180 172 Slowest Speed 180 | 120 180 180 180 Overloaded Moves . | . . . . Propulsion Burnouts . | . . . . Robots Hopped . | . . . . Cave-ins Triggered . | . . . . Exploration Rate (%) 46 | 1 65 52 69 Regions Visited 3 Branch Regions 2 Pre-discovered Areas 1 | . . . 1 Known Exits Taken . | . . . . Unknown Exits Taken 3 | 1 1 1 . Scrap Searched . | . . . . Spaces Dug . | . . . . Terrain Destroyed . | . . . . Melee . | . . . . Projectile . | . . . . AOE . | . . . . Terrain Rammed . | . . . . Walls Destroyed . | . . . . Machines Disabled . | . . . . Actions | -11 -10 -10 -10 --------- Run | Scr Mat Min Exi Total 1597 | . 495 275 827 Wait 54 | . 8 2 44 Move 1369 | . 417 258 694 Hop . | . . . . Pick Up 39 | . 20 9 10 Fast Attach 8 | . 1 . 7 Attach 12 | . 6 1 5 Detach . | . . . . Swap 5 | . 3 . 2 Drop 30 | . 15 1 14 Fire 79 | . 25 4 50 Melee 1 | . . . 1 Ram . | . . . . Kick . | . . . . Crush . | . . . . Escape Stasis . | . . . . Rewire . | . . . . Trap . | . . . . Miscellaneous . | . . . . Route ------- -11/Scrapyard -10/Materials (discovered 2 exits: [*Mat] / [*Min]) -10/Mines (discovered 2 exits: [*Mat] / *Exi) -10/Exiles (discovered 1 exit: [*Min]) History --------- Turn | Location | Event 1 | -11/Scrapyard | Discovered new exit (range 0) 1 | -11/Scrapyard | Entered Materials 300 | -10/Materials | Build established: Mutant 572 | -10/Materials | Discovered new exit (range 6) 768 | -10/Materials | Discovered new exit (range 12) 818 | -10/Materials | Entered Mines 867 | -10/Mines | Deemed a non-threat by the Exiles lab entrance 867 | -10/Mines | Discovered new exit (range 5) 988 | -10/Mines | Discovered new exit (range 11) 1057 | -10/Mines | Learned Materials emergency access door positions 1307 | -10/Mines | Entered Exiles 1338 | -10/Exiles | Build established: Hauler-Mutant 1551 | -10/Exiles | Met 8R-AWN 1582 | -10/Exiles | Met EX-HEX 1677 | -10/Exiles | Met EX-DEC 1709 | -10/Exiles | Learned location of Zion (-7) 1833 | -10/Exiles | Met EX-BIN 1859 | -10/Exiles | Aligned with FarCom system 1860 | -10/Exiles | Given EX-Vault access code 1902 | -10/Exiles | Opened EX-Vault 1941 | -10/Exiles | Warned to stay clear of 0b10 Research branches 2051 | -10/Exiles | Discovered new exit (range 14) 2229 | -10/Exiles | Found Gui. Plasma Cannon 2233 | -10/Exiles | Found Field Lobotomy Kit 2368 | -10/Exiles | Build established: Mutant 2453 | -10/Exiles | Attacked by the Exiles 2497 | -10/Exiles | Assimilated as-82828 with FLK Orb 2508 | -10/Exiles | Assimilated as-56781 with FLK Orb 2517 | -10/Exiles | Assimilated as-71024 with FLK Orb 2638 | -10/Exiles | Core integrity fell below 50% 2681 | -10/Exiles | Lost 7 parts (1p2n2u2w) 2685 | -10/Exiles | Core integrity fell below 20% 2718 | -10/Exiles | Destroyed by 8R-AWN with 8R-AWN's Boregun Last Messages --------------- 02688_ HV Slug penetrates Wall. 02688_ Penetrated by HV Slug. 02688_ HV Slug penetrates Wall. 02697_ Penetrated by HV Slug. 02697_ HV Slug penetrates Wall. 02697_ Penetrated by HV Slug. 02697_ HV Slug penetrates Wall. 02697_ Machine disabled. 02701_ Penetrated by HV Slug. 02701_ HV Slug penetrates Wall. 02701_ Penetrated by HV Slug. 02701_ HV Slug penetrates Wall. 02705_ Penetrated by HV Slug. 02705_ HV Slug penetrates Wall. 02705_ Penetrated by HV Slug. 02709_ Critical hit. 02709_ Lgt. Treads destroyed. 02714_ Penetrated by HV Slug. 02714_ HV Slug penetrates Wall. 02718_ Penetrated by HV Slug. Map ----- +----------------------------------------------------+ | ??????????????????????????????????????????????? | | ??????????????????????????????????????????????? | | ??????????????????????????????????????????????? | | ??????????????????????????????????????????????? | | ??????????????????????????????????????????????? | | ??????????????????????????????????????????????? | | ??????????????????????????????????????????????? | | ??????????????????????????????????????????????? | | ??????????????????????????????????????????????? | | ??????????????????????????????????????????????? | | ???????????????????????????????? ?????????????? | | ??????????????????????????????? ??????????????? | | ?????????????????????????????# ???????????????? | | ????????????????????????????# #???????????????? | | ???????????????????????????# #????????????????? | | ????????????????#####?????# #?????????????????? | | ???????????????## ##???# #??????????????????? | | ???????????????# #??# #???????????????????? | | ???????????????# < #?# #????????????????????? | | ???????????????# ##"#?????????????????????? | | ???????????????# "#?????????????????????? | | ???????????????# ###?????????????????????? | | ???????????????## g ##??????????????????????? | | ????????????????# !;##?????????????????????? | | ????????????????## [ ! ;##??????????#######???? | | ?????????????????# ]!@;;#####??????#!!! "#???? | | ?????????????????# = | % ;""##?????# "#???? | | ?????????????????## =[[ % #?????# "#???? | | ??????????????????## % ##???## ""#???? | | ??????????????????#" ! % #####" ""#???? | | ??????????????????#### %]]* ##" ""#???? | | ?????????????????????## ! #"" #?????? | | ??????????????????????#"## % #?????? | | ??????????????????????#####;; ##????? | | ???????????????????????????#;## "#????? | | ??????????????????????######;;" ###??? | | ??????????????????????# !!""" ##?? | | ??????????????????????#! "###"" ### | | ??????????????????????#! "#?##" " | | ??????????????????????#! ##??#" | | ??????????????????????# !""""""###???#"# | | ??????????????????????##########?????#### | | ????????????????????????????????????????### | | ??????????????????????????????????????????### | | ????????????????????????????????????????????## | | ?????????????????????????????????????????????## | | ??????????????????????????????????????????????# | | ??????????????????????????????????????????????? | | ??????????????????????????????????????????????# | | ??????????????????????????????????????????????# | +----------------------------------------------------+ Best States ------------- Heat Dissipation 25 Coolant Potential 50 Energy Generation 14 Energy Capacity 250 Matter Stores 300 Matter Capacity 300 Sight Range 16 Terrain Scan Density 10 Armor Coverage 300 Weapon Shielding 33 Evasion (%) 40 Recoil Reduction 2 Item Schematics ----------------- None Robot Schematics ------------------ None Fabricated ------------ Nothing Alien Tech Used ----------------- None Achievements -------------- None Challenges ------------ None Game ------ Seed StructuralInertialFilter Manual? 0 Play Time 00:15:38 Cumulative 273.6 hours Start 2021.01.27 @ 14:56:04 End 2021.01.27 @ 15:09:07 Sessions 1 Manual Loads 0 Difficulty Rogue Special Mode None Game No. 234 Rogue 227 Adventurer 0 Explorer 7 Win Type - Total 8 Types 2/0/6/0/0/0/0/0/0 Lore% 74 Gallery% 91 Achievement% 71 Wizard Run 0 Options --------- ASCII 0 Keyboard 0 Movement Mouse Keybinds 0 Fullscreen 1 Font 18/X11 Map View 76x50 Tactical HUD 1 Map Filters NONE Filters NONE Steam 1 RUN: 54d4c411-59b1-4ff0-bcff-1fe94fd12650